[Event "17th Delhi GM Open 2019-B"]
[Site "Delhi"]
[Date "2019.01.12"]
[Round "10"]
[White "Saurabh Lokhande"]
[Black "Praloy Sahoo"]
[Result "0-1"]
[ECO "C06"]
[WhiteElo "1674"]
[BlackElo "1795"]
[Annotator "NA RC"]
[PlyCount "122"]
[EventDate "2019.01.09"]
[EventType "swiss"]
[EventCountry "IND"]
[SourceTitle "playchess.com"]
[Source "ChessBase"]
[SourceQuality "1"]
[TimeControl "3600+30"]

1. e4 {[%emt 0:00:00]} e6 {[%emt 0:00:00]} 2. d4 {[%emt 0:00:00]} d5 {[%emt 0:00:00]} 3. Nd2 {[%emt 0:00:00]} Nf6 {[%emt 0:00:00]} 4. e5 {[%emt 0:00:00]} Nfd7 {[%emt 0:00:00]} 5. Bd3 {[%emt 0:00:00]} c5 {[%emt 0:00:00]} 6. c3 {[%emt 0:00:00]} Nc6 {[%emt 0:00:00]} 7. Ne2 {[%emt 0:00:00]} cxd4 {[%emt 0:00:00]} 8. cxd4 {[%emt 0:00:00]} f6 {[%emt 0:00:00]} 9. exf6 {[%emt 0:00:00]} Qxf6 {[%emt 0:00:00]} 10. Nf3 {[%emt 0:00:00]} h6 {[%emt 0:00:00]} 11. a3 {[%emt 0:00:00]} Bd6 {[%emt 0:00:00]} 12. Bc2 {[%emt 0:00:00]} O-O {[%emt 0:00:00]} 13. O-O {[%emt 0:00:00]} Rd8 {[%emt 0:00:00]} 14. Qd3 {[%emt 0:00:00]} Nf8 {[%emt 0:00:00]} 15. Re1 {[%emt 0:00:00]} Bd7 {[%emt 0:00:00]} 16. b4 {[%emt 0:00:00]} a6 {[%emt 0:00:00]} 17. Bb2 {[%emt 0:00:00]} Rac8 {[%emt 0:00:00]} 18. Rac1 {[%emt 0:00:00]} Be8 {[%emt 0:00:00]} 19. Qe3 {[%emt 0:02:18]} Rc7 {[%emt 0:00:00]} 20. Ne5 {[%emt 0:01:21]} Rdc8 {[%emt 0:00:00]} 21. f4 {[%emt 0:00:58]} Nxb4 {[%emt 0:00:00]} 22. Bb3 {[%emt 0:02:06]} Rxc1 {[%emt 0:00:00]} 23. Rxc1 {[%emt 0:02:22]} Rxc1+ {[%emt 0:01:54]} 24. Qxc1 {[%emt 0:00:01]} Nc6 {[%emt 0:00:10]} 25. Qe3 {[%emt 0:05:27]} Qf5 {[%emt 0:03:56]} 26. Qd2 {[%emt 0:06:53]} Qf6 {[%emt 0:01:27]} 27. h3 {[%emt 0:01:18]} Qd8 {[%emt 0:02:32]} 28. Kh2 {[%emt 0:00:01]} Na5 {[%emt 0:01:34]} 29. Ba2 {[%emt 0:00:30]} Bb5 {[%emt 0:04:17]} 30. Ng3 {[%emt 0:00:01]} Bxe5 {[%emt 0:00:36]} 31. dxe5 {[%emt 0:00:18]} Nc4 {[%emt 0:00:02]} 32. Bxc4 {[%emt 0:00:16]} Bxc4 {[%emt 0:00:00]} 33. f5 {[%emt 0:00:20]} exf5 {[%emt 0:04:10]} 34. Nxf5 {[%emt 0:00:12]} Ne6 {[%emt 0:00:04]} 35. Nd6 {[%emt 0:03:43]} b5 {[%emt 0:00:10]} 36. g4 {[%emt 0:03:22]} Qg5 {[%emt 0:02:31]} 37. Nxc4 {[%emt 0:00:01]} dxc4 {[%emt 0:00:25]} 38. Qd5 {[%emt 0:01:43]} Qf4+ {[%emt 0:00:24]} 39. Kg2 {[%emt 0:00:11]} Qf7 {[%emt 0:00:03]} 40. Qa8+ {[%emt 0:00:45]} Kh7 {[%emt 0:00:49]} 41. Qe4+ {[%emt 0:01:26]} Qg6 {[%emt 0:00:48]} 42. Qf5 {[%emt 0:00:14]} Qxf5 {[%emt 0:01:23]} 43. gxf5 {[%emt 0:00:07]} Nf4+ {[%emt 0:00:33]} 44. Kf3 {[%emt 0:01:40]} Nd5 {[%emt 0:11:40]} 45. Ke4 {[%emt 0:00:09]} c3 {[%emt 0:00:06]} 46. Bc1 {[%emt 0:00:14]} Ne7 {[%emt 0:00:15]} 47. e6 {[%emt 0:00:35]} Kg8 {[%emt 0:02:15]} 48. Ke5 {[%emt 0:00:00]} Kf8 {[%emt 0:00:02]} 49. h4 {[%emt 0:00:40]} Ke8 {[%emt 0:00:51]} 50. h5 {[%emt 0:00:00]} Ng8 {[%emt 0:00:09]} 51. Kd4 {[%emt 0:00:54]} c2 {[%emt 0:03:14]} 52. Kc3 {[%emt 0:00:44]} Ne7 {[%emt 0:00:09]} 53. Kxc2 {[%emt 0:01:35]} Nxf5 {[%emt 0:00:01]} 54. Kb3 {[%emt 0:00:47]} a5 {[%emt 0:00:33]} 55. Bd2 {[%emt 0:00:25]} Nd4+ {[%emt 0:01:26]} 56. Kb2 {[%emt 0:00:00]} b4 {[%emt 0:01:14]} 57. a4 {[%emt 0:00:00]} Nxe6 {[%emt 0:00:00]} 58. Kb3 {[%emt 0:00:07]} Nc5+ {[%emt 0:00:30]} 59. Kc4 {[%emt 0:00:48]} Nxa4 {[%emt 0:00:02]} 60. Kb5 {[%emt 0:00:02]} b3 {[%emt 0:00:00]} 61. Bc1 {[%emt 0:00:29]} b2 {[%emt 0:00:00]} 0-1

[Event "17th Delhi GM Open 2019-B"]
[Site "Delhi"]
[Date "2019.01.12"]
[Round "10"]
[White "Deepak Batra"]
[Black "Abdul Majeed, N.."]
[Result "1-0"]
[ECO "B23"]
[WhiteElo "1607"]
[BlackElo "1765"]
[Annotator "NA RC"]
[PlyCount "53"]
[EventDate "2019.01.09"]
[EventType "swiss"]
[EventCountry "IND"]
[SourceTitle "playchess.com"]
[Source "ChessBase"]
[SourceQuality "1"]
[TimeControl "3600+30"]

1. e4 {[%emt 0:00:00]} c5 {[%emt 0:00:00]} 2. Nc3 {[%emt 0:00:00]} d6 {[%emt 0:00:00]} 3. f4 {[%emt 0:00:00]} Nc6 {[%emt 0:00:00]} 4. Nf3 {[%emt 0:00:00]} g6 {[%emt 0:00:00]} 5. Bb5 {[%emt 0:00:00]} Bg7 {[%emt 0:00:00]} 6. Bxc6+ {[%emt 0:00:00]} bxc6 {[%emt 0:00:00]} 7. O-O {[%emt 0:00:00]} Nf6 {[%emt 0:00:00]} 8. d3 {[%emt 0:00:00]} O-O {[%emt 0:00:00]} 9. Qe1 {[%emt 0:00:00]} e6 {[%emt 0:00:00]} 10. Qh4 {[%emt 0:00:00]} Nh5 {[%emt 0:00:00]} 11. Qxd8 {[%emt 0:00:00]} Rxd8 {[%emt 0:00:00]} 12. e5 {[%emt 0:00:00]} Bf8 {[%emt 0:00:00]} 13. g4 {[%emt 0:00:00]} Ng7 {[%emt 0:00:00]} 14. Ne4 {[%emt 0:00:00]} Ne8 {[%emt 0:00:00]} 15. exd6 {[%emt 0:00:00]} Bxd6 {[%emt 0:00:00]} 16. Be3 {[%emt 0:00:00]} Rb8 {[%emt 0:01:37]} 17. b3 {[%emt 0:00:00]} Rb5 {[%emt 0:00:28]} 18. a4 {[%emt 0:00:00]} Ra5 {[%emt 0:06:39]} 19. Ne5 {[%emt 0:00:00]} Bxe5 {[%emt 0:00:38]} 20. fxe5 {[%emt 0:00:00]} c4 {[%emt 0:00:26]} 21. d4 cxb3 {[%emt 0:00:17]} 22. cxb3 {[%emt 0:00:00]} Ba6 {[%emt 0:00:39]} 23. Rfc1 {[%emt 0:00:00]} Rb8 {[%emt 0:03:20]} 24. Rc3 {[%emt 0:00:00]} Nc7 {[%emt 0:01:00]} 25. Nf6+ {[%emt 0:00:00]} Kg7 {[%emt 0:05:36]} 26. Bd2 {[%emt 0:00:00]} Bb7 {[%emt 0:07:05]} 27. Rh3 {[%emt 0:00:00]} 1-0